fUSD/lending_fUSD_20260414
["ID","MTS","AMOUNT","RATE_DAILY","PERIOD"]
[420476649,1776135036482,-500.0,0.00010958,3]
[420476650,1776135036500,-500.0,0.00010958,4]
[420476651,1776135036511,-522.53135288,0.00010958,2]
[420476652,1776135036521,-2000.0,0.00010959,2]
[420476653,1776135036536,-200.0,0.00010959,2]
[420476654,1776135036546,-500.0,0.00010959,2]
[420476655,1776135036559,-330.91996524,0.00010959,2]
[420476656,1776135036569,-150.0,0.00010959,2]
[420476657,1776135036593,-150.0,0.00010959,2]
[420476658,1776135036603,-1160.75,0.00010974,2]
[420476659,1776135036616,-8456.61669396,0.00010982,2]
[420476660,1776135036629,-2921.22248417,0.00011,2]
[420476661,1776135036645,-150.0,0.00011002,2]
[420476662,1776135036654,-467.23612555,0.00011029,2]
[420476663,1776135036674,-283.21869434,0.00011045,2]
[420476664,1776135036689,-167.0,0.00011051,2]
[420476665,1776135036699,-152.0,0.00011051,2]
[420476666,1776135036723,-152.0,0.00011051,2]
[420476667,1776135036736,-152.0,0.00011051,2]
[420476668,1776135036763,-152.0,0.00011057,7]
[420476669,1776135036777,-180.6611155,0.00011059,2]
[420476670,1776135036797,-300.0,0.00011095,2]
[420476671,1776135036816,-300.0,0.00011095,2]
[420476672,1776135036825,-200.0,0.00011096,2]
[420476673,1776135036839,-305.29414556,0.00011098,2]
[420476674,1776135036860,-300.0,0.00011098,2]
[420476675,1776135036880,-300.0,0.00011098,2]
[420476676,1776135036896,-300.0,0.00011098,2]
[420476677,1776135036917,-300.0,0.00011098,2]
[420476678,1776135036941,-300.0,0.00011098,2]
[420476679,1776135036965,-19399.81590509,0.00011099,2]
[420476680,1776135036978,-19399.81590508,0.00011099,2]
[420476681,1776135036991,-5493.31710867,0.00011099,2]
[420476682,1776135037007,-5493.31710863,0.00011099,2]
[420476683,1776135037021,-5493.31710863,0.00011099,2]
[420476684,1776135037036,-266.30288982,0.00011101,2]
[420476685,1776135037057,-866.02699098,0.00011111,2]
[420476686,1776135037068,-406.72197068,0.00011114,2]
[420476687,1776135037077,-244.88679854,0.00011114,2]
[420476688,1776135037100,-241.972718,0.00011139,2]
[420476689,1776135037111,-227.49736323,0.00011152,2]
[420476690,1776135037120,-923.50803623,0.00011178,2]
[420476691,1776135037162,-186.73091386,0.00011181,2]
[420476692,1776135037192,-166.66,0.00011182,2]
[420476693,1776135037232,-212.16963419,0.00011184,2]
[420476694,1776135037242,-152.0,0.00011185,8]
[420476695,1776135037285,-1160.75,0.00011248,2]
[420476696,1776135037295,-160.04716649,0.0001125,2]
[420476697,1776135037362,-150.00000001,0.0001126,2]
[420476698,1776135037380,-2000.0,0.00011267,2]
[420476699,1776135037392,-194.72792766,0.00011302,2]
[420476700,1776135037410,-1600.0,0.00011305,2]
[420476701,1776135037422,-154.9,0.00011309,2]
[420476702,1776135037432,-152.0,0.00011312,9]
[420476703,1776135037455,-150.0,0.00011313,2]
[420476704,1776135037465,-150.0,0.00011313,2]
[420476705,1776135037478,-258.22497451,0.00011314,2]
[420476706,1776135037497,-226.53832694,0.00011314,2]
[420476707,1776135037507,-709.48097435,0.00011331,2]
[420476709,1776135037523,-936.05617543,0.00011331,2]
[420476712,1776135037542,-1592.87721993,0.00011331,2]
[420476713,1776135037553,-200.0,0.00011331,2]
[420476714,1776135037563,-829.12830338,0.00011331,2]
[420476715,1776135037581,-156.0,0.00011333,3]
[420476716,1776135037591,-257.44,0.0001134,2]
[420476717,1776135037601,-479.0,0.00011342,2]
[420476718,1776135037614,-254.52391105,0.00011368,2]
[420476719,1776135037634,-300.0,0.00011369,2]
[420476720,1776135037645,-300.0,0.00011369,2]
[420476721,1776135037655,-5493.31710863,0.0001137,2]
[420476722,1776135037671,-19399.81590508,0.00011373,2]
[420476723,1776135037681,-151.0,0.00011373,2]
[420476724,1776135037696,-151.0,0.00011373,2]
[420476725,1776135037710,-151.0,0.00011373,2]
[420476726,1776135037720,-151.0,0.00011373,2]
[420476727,1776135037730,-151.0,0.00011373,2]
[420476728,1776135037749,-151.0,0.00011373,2]
[420476729,1776135037762,-1622.42456577,0.00011387,2]
[420476730,1776135037786,-168.5,0.00011425,2]
[420476731,1776135037818,-168.5,0.00011425,2]
[420476732,1776135037828,-168.5,0.00011425,2]
[420476733,1776135037849,-290.00234702,0.00011437,2]
[420476734,1776135037878,-152.0,0.00011439,10]
[420476735,1776135037888,-1500.0,0.00011468,2]
[420476736,1776135037922,-1006.43388507,0.00011468,2]
[420476737,1776135037936,-614.88262463,0.00011468,2]
[420476738,1776135037951,-1495.45117618,0.00011468,2]
[420476739,1776135037976,-1500.0,0.00011468,2]
[420476740,1776135037987,-268.29,0.00011492,2]
[420476741,1776135038000,-1031.69392741,0.00011501,3]
[420476742,1776135038013,-4237.69,0.00011507,2]
[420476743,1776135038030,-217.0,0.0001152,3]
[420476744,1776135038040,-1160.75,0.00011522,2]
[420476745,1776135038062,-150.00000001,0.0001154,2]
[420476746,1776135038081,-152.0,0.00011566,11]
[420476747,1776135038102,-861.43746607,0.0001159,2]
[420476748,1776135038114,-1177.8501053,0.0001159,2]
[420476749,1776135038124,-150.0,0.00011594,2]
[420476750,1776135038134,-323.93950737,0.00011605,2]
[420476751,1776135038169,-297.0955647,0.00011605,2]
[420476752,1776135038179,-312.55527638,0.00011636,2]
[420476753,1776135038208,-315.14734218,0.00011636,2]
[420476754,1776135038219,-327.83192543,0.00011644,2]
[420476755,1776135038229,-300.0,0.00011651,2]
[420476756,1776135038252,-272.71756088,0.00011655,2]
[420476757,1776135038262,-155.0,0.00011657,2]
[420476758,1776135038275,-204.12,0.00011665,2]
[420476759,1776135038288,-250.0,0.00011681,2]
[420476760,1776135038298,-8456.61669396,0.00011685,2]
[420476761,1776135038308,-245.90181348,0.00011689,2]
[420476762,1776135038320,-152.0,0.00011693,12]
[420476763,1776135038333,-312.03849014,0.00011699,2]
[420476764,1776135038343,-264.00739857,0.00011703,2]
[420476765,1776135038353,-323.96235463,0.00011711,2]
[420476766,1776135038364,-1160.75,0.00011796,2]
[420476767,1776135038375,-293.8791773,0.00011806,2]
[420476768,1776135038388,-152.0,0.00011821,13]
[420476769,1776135038398,-257.44,0.00011833,2]
[420476770,1776135038409,-906.55732287,0.00011847,2]
[420476771,1776135038425,-201.93286099,0.0001185,2]
[420476772,1776135038437,-160.51,0.00011863,2]
[420476773,1776135038452,-1651.81367706,0.00011879,2]
[420476774,1776135038462,-200.0,0.00011879,2]
[420476775,1776135038479,-859.80605061,0.00011879,2]
[420476776,1776135038491,-5892.9277752,0.00011884,2]
[420476777,1776135038515,-300.0,0.00011899,2]
[420476778,1776135038527,-300.0,0.00011899,2]
[420476779,1776135038552,-49024.71842201,0.000119,2]
[420476782,1776135040253,-2000.0,0.000119,2]
[420476783,1776135040303,-4115.4384004,0.000119,2]
[420476784,1776135040318,-2649.0,0.000119,2]
[420476785,1776135040347,-250.0,0.000119,2]
[420476786,1776135040359,-45939.60752202,0.000119,2]
[420476787,1776135040378,-1400.0,0.000119,4]
[420476788,1776135040388,-160.51,0.00011906,2]
[420476789,1776135040397,-300.0,0.00011916,2]
[420476790,1776135040407,-151.0,0.00011919,2]
[420476791,1776135040423,-151.0,0.00011919,2]
[420476792,1776135040440,-151.0,0.00011919,2]
[420476793,1776135040452,-275.98018,0.00011919,2]
[420476794,1776135040467,-151.0,0.00011919,2]
[420476795,1776135040480,-151.0,0.00011919,2]
[420476796,1776135040497,-19399.81590508,0.00011919,2]
[420476797,1776135040520,-505.84516235,0.00011927,2]
[420476798,1776135040533,-152.0,0.00011948,14]
[420476799,1776135040566,-5493.31710863,0.00012008,2]
[420476800,1776135040582,-154.9,0.00012012,2]
[420476801,1776135040612,-2025.47467826,0.00012016,2]
[420476802,1776135040624,-1499.61206819,0.00012016,2]
[420476803,1776135040651,-300.0,0.00012054,2]
[420476804,1776135040684,-1042.73872331,0.00012054,3]
[420476805,1776135040695,-52265.99,0.00012055,2]
[420476806,1776135040737,-1687.31756085,0.00012069,2]
[420476807,1776135040751,-1160.75,0.0001207,2]
[420476808,1776135040761,-152.0,0.00012075,15]
[420476809,1776135040773,-1050.724,0.00012153,2]
[420476810,1776135040793,-624.311,0.00012153,2]
[420476811,1776135040804,-3529.167,0.00012153,2]
[420476812,1776135040827,-1348.0,0.00012153,2]
[420476813,1776135040837,-1268.186,0.00012153,2]
[420476814,1776135040848,-1234.438,0.00012153,2]
[420476815,1776135040877,-939.724,0.00012153,2]
[420476816,1776135040889,-3777.0,0.00012153,2]
[420476817,1776135040899,-2473.0,0.00012153,2]
[420476818,1776135040919,-217.0,0.00012175,3]
[420476819,1776135040929,-189.8461,0.000122,2]
[420476820,1776135040940,-152.0,0.00012202,16]
[420476821,1776135040954,-1269.68,0.00012279,2]
[420476822,1776135040971,-599.60298507,0.00012294,2]
[420476823,1776135040983,-257.44,0.00012326,2]
[420476824,1776135040997,-152.0,0.00012329,17]
[420476825,1776135041022,-1160.75,0.00012344,2]
[420476826,1776135041041,-8456.61669396,0.00012388,2]
[420476827,1776135041072,-158.84847009,0.00012394,2]
[420476828,1776135041083,-326.80628673,0.00012394,2]
[420476829,1776135041096,-2000.0,0.00012394,2]
[420476830,1776135041112,-209.40437684,0.00012398,2]
[420476831,1776135041122,-747.8093786,0.00012426,2]
[420476832,1776135041131,-1712.93078312,0.00012427,2]
[420476833,1776135041141,-200.0,0.00012427,2]
[420476834,1776135041158,-891.61887448,0.00012427,2]
[420476835,1776135041180,-1600.0,0.00012436,2]
[420476836,1776135041190,-153.59857004,0.00012438,2]
[420476837,1776135041206,-152.0,0.00012456,18]
[420476838,1776135041222,-19399.81590508,0.00012466,2]
[420476839,1776135041241,-152.0,0.00012584,19]
[420476840,1776135041251,-1160.79505446,0.00012618,2]
[420476842,1776135041263,-170.51007067,0.00012643,2]
[420476844,1776135041279,-477.72,0.00012645,2]
[420476846,1776135041292,-5493.31710863,0.00012647,2]
[420476848,1776135041308,-293.8791773,0.00012655,2]
[420476850,1776135041327,-253.56652761,0.00012686,2]
[420476852,1776135041343,-263.45864313,0.00012696,2]
[420476854,1776135041363,-438.12005438,0.00012696,2]
[420476856,1776135041379,-152.0,0.00012711,20]
[420476858,1776135041390,-196.10411123,0.00012727,2]
[420476860,1776135041408,-257.44,0.00012819,2]
[420476862,1776135041425,-217.0,0.0001283,3]
[420476865,1776135041444,-152.0,0.00012838,21]
[420476866,1776135041462,-420.74160397,0.000129,2]
[420476868,1776135041479,-323.6904255,0.0001293,2]
[420476870,1776135041491,-150.0,0.00012942,2]
[420476879,1776135041709,-217.15233878,0.00012946,2]
[420476882,1776135041752,-150.0,0.00012951,2]
[420476884,1776135041779,-152.0,0.00012965,22]
[420476886,1776135041808,-1776.30922209,0.00012975,2]
[420476888,1776135041819,-200.0,0.00012975,2]
[420476890,1776135041830,-860.77958762,0.00012975,2]
[420476892,1776135041851,-150.0,0.00012996,2]
[420476893,1776135041862,-16592.64936151,0.00013,15]
[420476896,1776135041873,-155.0,0.00013,2]
[420476898,1776135041885,-250.0,0.00013,2]
[420476900,1776135041898,-151.0,0.00013,2]
[420476902,1776135041914,-151.0,0.00013,2]
[420476904,1776135041929,-151.0,0.00013,2]
[420476906,1776135041942,-151.0,0.00013,2]
[420476908,1776135041955,-151.0,0.00013,2]
[420476911,1776135041970,-19399.81590508,0.00013013,2]
[420476913,1776135041985,-150.0,0.00013014,2]
[420476915,1776135042000,-150.0,0.00013014,2]
[420476917,1776135042011,-150.0,0.00013014,2]
[420476919,1776135042023,-204.0,0.00013014,2]
[420476920,1776135042035,-258.17,0.00013014,2]
[420476923,1776135042046,-250.0,0.00013024,2]
[420476925,1776135042057,-250.0,0.00013024,2]
[420476927,1776135042069,-250.0,0.00013024,2]
[420476929,1776135042079,-250.0,0.00013024,2]
[420476931,1776135042091,-250.0,0.00013024,2]
[420476932,1776135042101,-250.0,0.00013024,2]
[420476935,1776135042117,-250.0,0.00013024,2]
[420476937,1776135042127,-337.0,0.00013024,2]
[420476939,1776135042152,-150.082,0.00013024,2]
[420476941,1776135042163,-150.0,0.00013024,2]
[420476943,1776135042180,-150.44,0.00013024,2]
[420476945,1776135042191,-250.0,0.00013024,2]
[420476946,1776135042201,-163.699,0.00013024,2]
[420476949,1776135042215,-250.0,0.00013024,2]
[420476950,1776135042243,-156.347,0.00013024,2]
[420476952,1776135042253,-193.775,0.00013024,2]
[420476954,1776135042263,-166.306,0.00013024,2]
[420476956,1776135042282,-215.171,0.00013024,2]
[420476958,1776135042293,-250.0,0.00013024,2]
[420476959,1776135042304,-181.0,0.00013024,2]
[420476961,1776135042324,-240.828,0.00013024,2]
[420476962,1776135042337,-8456.61669396,0.00013091,2]
[420476963,1776135042366,-152.0,0.00013092,23]
[420476964,1776135042376,-156.0,0.00013111,3]
[420476965,1776135042390,-450.0,0.00013147,2]
[420476966,1776135042408,-5892.9277752,0.00013168,2]
[420476967,1776135042419,-152.0,0.0001322,24]
[420476968,1776135042429,-669.0,0.00013268,2]
[420476969,1776135042453,-801.0,0.00013268,2]
[420476970,1776135042467,-2016.0,0.00013268,2]
[420476971,1776135042495,-1064.0,0.00013268,2]
[420476972,1776135042505,-985.0,0.00013268,2]
[420476973,1776135042515,-5493.31710863,0.00013285,2]
[420476975,1776135042545,-257.44,0.00013312,2]
[420476978,1776135042571,-152.0,0.00013347,25]
[420476979,1776135042592,-346.0,0.00013408,2]
[420476982,1776135042609,-346.0,0.00013424,2]
[420476984,1776135042627,-3240.0,0.00013425,2]
[420476985,1776135042643,-1333.9488444,0.00013443,2]
[420476986,1776135042653,-317.06903009,0.00013456,2]
[420476987,1776135042663,-200.0,0.00013456,2]
[420476988,1776135042705,-200.0,0.00013456,2]
[420476989,1776135042719,-200.0,0.00013456,2]
[420476990,1776135042743,-200.0,0.00013456,2]
[420476991,1776135042753,-200.0,0.00013456,2]
[420476992,1776135042765,-200.0,0.00013456,2]
[420476993,1776135042790,-320.0,0.00013456,2]
[420476994,1776135042814,-346.0,0.0001346,2]
[420476995,1776135042829,-250.0,0.0001346,2]
[420476996,1776135042839,-250.0,0.0001346,2]
[420476997,1776135042856,-250.0,0.0001346,2]
[420476998,1776135042870,-250.0,0.0001346,2]
[420476999,1776135042888,-250.0,0.0001346,2]
[420477000,1776135042899,-250.0,0.0001346,2]
[420477001,1776135042912,-250.0,0.0001346,2]
[420477002,1776135042923,-311.0,0.0001346,2]
[420477003,1776135042947,-250.0,0.00013461,2]
[420477004,1776135042956,-250.0,0.00013461,2]
[420477005,1776135042971,-250.0,0.00013461,2]
[420477006,1776135042988,-250.0,0.00013461,2]
[420477007,1776135042998,-250.0,0.00013461,2]
[420477008,1776135043021,-250.0,0.00013461,2]
[420477009,1776135043035,-250.0,0.00013461,2]
[420477010,1776135043053,-250.0,0.00013461,2]
[420477011,1776135043068,-196.0,0.00013461,2]
[420477012,1776135043077,-152.0,0.00013474,26]
[420477013,1776135043095,-150.0,0.00013478,2]
[420477014,1776135043110,-150.0,0.00013478,2]
[420477015,1776135043119,-150.0,0.00013478,2]
[420477016,1776135043148,-150.0,0.00013478,2]
[420477017,1776135043158,-150.0,0.00013478,2]
[420477018,1776135043199,-207.0,0.00013478,2]
[420477019,1776135043214,-346.0,0.00013478,2]
[420477020,1776135043224,-222.4514787,0.00013485,2]
[420477021,1776135043469,-348.75790717,0.00013485,2]
[420477022,1776135043488,-217.0,0.00013485,3]
[420477023,1776135043501,-225.18697532,0.00013494,2]
[420477024,1776135043511,-240.277,0.000135,2]
[420477025,1776135043522,-507.0,0.000135,2]
[420477026,1776135043538,-293.8791773,0.00013503,2]
[420477027,1776135043550,-2000.0,0.0001352,2]
[420477028,1776135043560,-1842.03266331,0.00013523,2]
[420477029,1776135043595,-200.0,0.00013523,2]
[420477030,1776135043605,-19399.81590508,0.0001356,2]
[420477031,1776135043640,-1600.0,0.00013566,2]
[420477033,1776135043653,-477.72,0.00013576,2]
[420477035,1776135043673,-155.0,0.000136,2]
[420477037,1776135043683,-152.0,0.00013601,27]
[420477039,1776135043692,-346.0,0.00013617,2]
[420477041,1776135043706,-5888.0,0.00013639,2]
[420477044,1776135043720,-346.0,0.0001367,2]
[420477045,1776135043733,-160.0,0.00013676,2]
[420477046,1776135043745,-150.0,0.00013685,2]
[420477047,1776135043768,-150.0,0.00013685,2]
[420477048,1776135043777,-150.0,0.00013685,2]
[420477049,1776135043793,-150.0,0.00013685,2]
[420477050,1776135043807,-150.0,0.00013685,2]
[420477051,1776135043820,-150.0,0.00013685,2]
[420477052,1776135043831,-150.0,0.00013685,2]
[420477053,1776135043851,-150.0,0.00013685,2]
[420477054,1776135043864,-150.0,0.00013685,2]
[420477055,1776135043891,-150.0,0.00013685,2]
[420477056,1776135043916,-150.0,0.00013685,2]
[420477057,1776135043929,-500.0,0.00013698,2]
[420477058,1776135043938,-500.0,0.00013698,2]
[420477059,1776135043974,-500.0,0.00013698,2]
[420477060,1776135043984,-500.0,0.00013698,2]
[420477061,1776135044011,-500.0,0.00013698,2]
[420477062,1776135044034,-500.0,0.00013698,2]
[420477063,1776135044049,-500.0,0.00013698,2]
[420477064,1776135044067,-500.0,0.00013698,2]
[420477065,1776135044076,-500.0,0.00013698,2]
[420477066,1776135044090,-215.73484722,0.00013698,2]
[420477067,1776135044112,-500.0,0.00013698,2]
[420477068,1776135044124,-500.0,0.00013698,2]
[420477069,1776135044134,-182.44854255,0.00013698,2]
[420477070,1776135044143,-500.0,0.00013698,2]
[420477071,1776135044161,-500.0,0.00013698,2]
[420477072,1776135044174,-500.0,0.00013698,2]
[420477073,1776135044183,-500.0,0.00013698,2]
[420477074,1776135044193,-500.0,0.00013698,2]
[420477075,1776135044203,-500.0,0.00013698,2]
[420477076,1776135044216,-500.0,0.00013698,2]
[420477077,1776135044225,-500.0,0.00013698,2]
[420477078,1776135044235,-500.0,0.00013698,2]
[420477079,1776135044247,-500.0,0.00013698,2]
[420477080,1776135044268,-500.0,0.00013698,2]
[420477081,1776135044278,-500.0,0.00013698,2]
[420477082,1776135044289,-500.0,0.00013698,2]
[420477083,1776135044302,-500.0,0.00013698,2]
[420477084,1776135044367,-500.0,0.00013698,2]
[420477085,1776135044378,-500.0,0.00013698,2]
[420477086,1776135044432,-500.0,0.00013698,2]
[420477087,1776135044463,-500.0,0.00013698,2]
[420477088,1776135044477,-500.0,0.00013698,2]
[420477089,1776135044498,-500.0,0.00013698,2]
[420477090,1776135044514,-500.0,0.00013698,2]
[420477091,1776135044527,-500.0,0.00013698,2]
[420477092,1776135044542,-500.6388815,0.00013698,2]
[420477093,1776135044564,-500.0,0.00013698,2]
[420477094,1776135044574,-500.0,0.00013698,2]
[420477095,1776135044584,-351.95317463,0.00013698,2]
[420477096,1776135044597,-500.0,0.00013698,2]
[420477097,1776135044613,-500.0,0.00013698,2]
[420477098,1776135044626,-500.0,0.00013698,2]
[420477099,1776135044637,-500.0,0.00013698,2]
[420477100,1776135044655,-500.0,0.00013698,2]
[420477101,1776135044668,-500.0,0.00013698,2]
[420477102,1776135044696,-500.0,0.00013698,2]
[420477103,1776135044717,-473.63606507,0.00013698,2]
[420477104,1776135044734,-500.0,0.00013698,2]
[420477105,1776135044791,-192.65701381,0.00013698,2]
[420477106,1776135044803,-500.0,0.00013698,2]
[420477107,1776135044830,-500.0,0.00013698,2]
[420477108,1776135044856,-500.0,0.00013698,2]
[420477109,1776135044866,-500.0,0.00013698,2]
[420477110,1776135044889,-500.0,0.00013698,2]
[420477111,1776135044900,-500.0,0.00013698,2]
[420477112,1776135044909,-500.0,0.00013698,2]
[420477113,1776135044919,-500.0,0.00013698,2]
[420477114,1776135044935,-500.0,0.00013698,2]
[420477115,1776135044945,-500.0,0.00013698,2]
[420477116,1776135044959,-500.0,0.00013698,2]
[420477117,1776135044969,-500.0,0.00013698,2]
[420477118,1776135044980,-500.0,0.00013698,2]
[420477119,1776135044990,-500.0,0.00013698,2]
[420477120,1776135045003,-500.0,0.00013698,2]
[420477121,1776135045014,-500.0,0.00013698,2]
[420477122,1776135045026,-500.0,0.00013698,2]
[420477123,1776135045038,-500.0,0.00013698,2]
[420477124,1776135045054,-500.0,0.00013698,2]
[420477125,1776135045065,-500.0,0.00013698,2]
[420477126,1776135045097,-502.19545063,0.00013698,2]
[420477127,1776135045122,-500.0,0.00013698,2]
[420477128,1776135045131,-500.0,0.00013698,2]
[420477129,1776135045143,-500.0,0.00013698,2]
[420477130,1776135045162,-273.25457151,0.00013698,2]
[420477131,1776135045171,-500.0,0.00013698,2]
[420477132,1776135045186,-500.0,0.00013698,2]
[420477133,1776135045215,-636.83381243,0.00013698,2]
[420477134,1776135045224,-500.0,0.00013698,2]
[420477135,1776135045246,-335.68092278,0.00013698,2]
[420477136,1776135045269,-500.0,0.00013698,2]
[420477137,1776135045282,-500.0,0.00013698,2]
[420477138,1776135045292,-545.50317324,0.00013698,2]
[420477139,1776135045324,-500.0,0.00013698,2]
[420477140,1776135045333,-500.0,0.00013698,2]
[420477141,1776135045360,-500.0,0.00013698,2]
[420477142,1776135045369,-500.0,0.00013698,2]
[420477143,1776135045378,-500.0,0.00013698,2]
[420477144,1776135045388,-500.0,0.00013698,2]
[420477145,1776135045402,-500.0,0.00013698,2]
[420477146,1776135045415,-500.0,0.00013698,2]
[420477147,1776135045425,-221.3,0.00013698,2]
[420477148,1776135045435,-500.0,0.00013698,2]
[420477149,1776135045455,-500.0,0.00013698,2]
[420477150,1776135045464,-500.0,0.00013698,2]
[420477151,1776135045476,-500.0,0.00013698,2]
[420477152,1776135045487,-500.0,0.00013698,2]
[420477153,1776135045497,-500.0,0.00013698,2]
[420477154,1776135045507,-500.0,0.00013698,2]
[420477155,1776135045520,-500.0,0.00013698,2]
[420477156,1776135045531,-500.0,0.00013698,2]
[420477157,1776135045541,-509.52133891,0.00013698,2]
[420477158,1776135045550,-502.66897991,0.00013698,2]
[420477159,1776135045563,-500.0,0.00013698,2]
[420477160,1776135045577,-500.0,0.00013698,2]
[420477161,1776135045588,-500.0,0.00013698,2]
[420477162,1776135045599,-500.0,0.00013698,2]
[420477163,1776135045609,-500.0,0.00013698,2]
[420477164,1776135045625,-450.96314578,0.00013698,2]
[420477165,1776135045636,-500.0,0.00013698,2]
[420477166,1776135045649,-500.0,0.00013698,2]
[420477167,1776135046074,-500.0,0.00013698,2]
[420477168,1776135046109,-500.0,0.00013698,2]
[420477169,1776135046124,-500.0,0.00013698,2]
[420477170,1776135046143,-500.0,0.00013698,2]
[420477171,1776135046152,-500.0,0.00013698,2]
[420477172,1776135046162,-500.0,0.00013698,2]
[420477173,1776135046183,-427.40711277,0.00013698,2]
[420477175,1776135046193,-502.62827893,0.00013698,2]
[420477176,1776135046202,-500.0,0.00013698,2]
[420477177,1776135046220,-248.33767929,0.00013698,2]
[420477178,1776135046237,-500.0,0.00013698,2]
[420477179,1776135046247,-500.0,0.00013698,2]
[420477181,1776135046261,-500.0,0.00013698,2]
[420477182,1776135046272,-500.0,0.00013698,2]
[420477183,1776135046288,-500.0,0.00013698,2]
[420477184,1776135046305,-500.0,0.00013698,2]
[420477185,1776135046314,-500.0,0.00013698,2]
[420477186,1776135046330,-500.0,0.00013698,2]
[420477187,1776135046345,-500.0,0.00013698,2]
[420477188,1776135046357,-500.0,0.00013698,2]
[420477189,1776135046366,-500.0,0.00013698,2]
[420477190,1776135046376,-500.0,0.00013698,2]
[420477191,1776135046393,-500.0,0.00013698,2]
[420477192,1776135046404,-505.24882463,0.00013698,2]
[420477193,1776135046430,-982.56,0.00013698,2]
[420477194,1776135046447,-982.56,0.00013698,2]
[420477195,1776135046457,-982.56,0.00013698,2]
[420477196,1776135046469,-982.56,0.00013698,2]
[420477197,1776135046484,-982.56,0.00013698,2]
[420477198,1776135046494,-218.49016228,0.00013698,2]
[420477199,1776135046514,-764.06983772,0.00013698,2]
[420477200,1776135046543,-982.56,0.00013698,2]
[420477201,1776135046552,-982.56,0.00013698,2]
[420477202,1776135046562,-982.56,0.00013698,2]
[420477203,1776135046591,-500.0,0.00013698,2]
[420477204,1776135046608,-500.0,0.00013698,2]
[420477205,1776135046634,-500.0,0.00013698,2]
[420477206,1776135046675,-500.0,0.00013698,2]
[420477207,1776135046684,-500.0,0.00013698,2]
[420477208,1776135046716,-500.0,0.00013698,2]
[420477209,1776135046727,-500.0,0.00013698,2]
[420477210,1776135046757,-507.42664504,0.00013698,2]
[420477211,1776135046769,-500.0,0.00013698,2]
[420477212,1776135046788,-500.0,0.00013698,2]
[420477213,1776135046801,-504.72954597,0.00013698,2]
[420477214,1776135046811,-500.0,0.00013698,2]
[420477215,1776135046842,-500.0,0.00013699,2]
[420477216,1776135046851,-500.0,0.00013699,2]
[420477217,1776135046875,-500.0,0.00013699,2]
[420477218,1776135046885,-3900.0,0.00013699,2]
[420477219,1776135046894,-1472.88500007,0.00013699,2]
[420477220,1776135046923,-2427.11499993,0.00013699,2]
[420477221,1776135046933,-200.0,0.00013699,2]
[420477222,1776135046955,-1746.9,0.00013699,2]
[420477223,1776135046965,-166.66,0.00013699,2]
[420477224,1776135046974,-152.492109,0.00013699,2]
[420477225,1776135046987,-504.8,0.00013699,2]
[420477226,1776135047004,-500.0,0.00013699,2]
[420477227,1776135047022,-500.0,0.00013699,2]
[420477228,1776135047037,-500.0,0.00013699,2]
[420477229,1776135047046,-500.16663065,0.00013699,2]
[420477230,1776135047069,-500.0,0.00013699,2]
[420477231,1776135047092,-500.0,0.00013699,2]
[420477232,1776135047104,-500.6495102,0.00013699,2]